[Event "*** Titled Tuesday 3|2 Blitz"]
[Site "Chess.com"]
[Date "2015.12.01"]
[Round "7"]
[White "Alliswell998"]
[Black "bugsbunny444"]
[Result "0-1"]
[WhiteElo "2138"]
[BlackElo "2352"]
[TimeControl "180+2"]
[EndTime "18:30:04 PST"]
[Termination "bugsbunny444 won by checkmate"]

1. e4 {[%clk 0:03:01.9]} 1... e6 {[%clk 0:03:01.1]} 2. d4 {[%clk 0:03:02.7]}
2... d5 {[%clk 0:03:02.8]} 3. Nc3 {[%clk 0:03:04.2]} 3... Nf6 {[%clk 0:03:03.8]}
4. Bg5 {[%clk 0:03:05.2]} 4... Bb4 {[%clk 0:03:04.6]} 5. e5 {[%clk 0:03:05.5]}
5... h6 {[%clk 0:03:05.9]} 6. Bd2 {[%clk 0:03:07]} 6... Bxc3 {[%clk 0:03:07.1]}
7. bxc3 {[%clk 0:03:08.7]} 7... Ne4 {[%clk 0:03:08.8]} 8. Qg4 {[%clk 0:03:10.4]}
8... g6 {[%clk 0:03:09.7]} 9. Bc1 {[%clk 0:03:09.9]} 9... Nxc3 {[%clk 0:03:10]}
10. Bd3 {[%clk 0:03:03.6]} 10... Qe7 {[%clk 0:03:09.2]} 11. Nf3 {[%clk
0:03:03.2]} 11... Nc6 {[%clk 0:03:07.5]} 12. Bd2 {[%clk 0:02:50.5]} 12... Na4
{[%clk 0:03:06.4]} 13. O-O {[%clk 0:02:48.3]} 13... Bd7 {[%clk 0:03:00.8]} 14.
Rab1 {[%clk 0:02:45.5]} 14... O-O-O {[%clk 0:02:57.9]} 15. Bb5 {[%clk
0:02:15.5]} 15... Nb8 {[%clk 0:02:47.6]} 16. Bb4 {[%clk 0:02:14.2]} 16... Qe8
{[%clk 0:02:46.7]} 17. Bd3 {[%clk 0:02:01.6]} 17... Nb6 {[%clk 0:02:08.8]} 18.
Bc5 {[%clk 0:01:58.1]} 18... Ba4 {[%clk 0:01:59.2]} 19. Rb4 {[%clk 0:01:55.2]}
19... N8d7 {[%clk 0:01:47.2]} 20. Rfb1 {[%clk 0:01:47.8]} 20... f5 {[%clk
0:01:42.8]} 21. exf6 {[%clk 0:01:46]} 21... Nxf6 {[%clk 0:01:37.1]} 22. Qxg6
{[%clk 0:01:46.2]} 22... Qxg6 {[%clk 0:01:32.9]} 23. Bxg6 {[%clk 0:01:48.1]}
23... Be8 {[%clk 0:01:14.8]} 24. Be7 {[%clk 0:01:36.1]} 24... Bxg6 {[%clk
0:00:53.4]} 25. Bxf6 {[%clk 0:01:36.5]} 25... Bxc2 {[%clk 0:00:55]} 26. Rc1
{[%clk 0:01:34.9]} 26... Ba4 {[%clk 0:00:41.8]} 27. Bxh8 {[%clk 0:01:33.3]}
27... Rxh8 {[%clk 0:00:42.6]} 28. Ne5 {[%clk 0:01:34.1]} 28... Rf8 {[%clk
0:00:27.9]} 29. Rc3 {[%clk 0:01:32.2]} 29... Be8 {[%clk 0:00:22.7]} 30. Rf3
{[%clk 0:01:29.5]} 30... Rxf3 {[%clk 0:00:19.8]} 31. Nxf3 {[%clk 0:01:30.7]}
31... Nc4 {[%clk 0:00:18.1]} 32. Ne5 {[%clk 0:01:29]} 32... c5 {[%clk
0:00:11.4]} 33. Rb1 {[%clk 0:01:24.8]} 33... cxd4 {[%clk 0:00:11.4]} 34. Nxc4
{[%clk 0:01:21.1]} 34... dxc4 {[%clk 0:00:12.5]} 35. Kf1 {[%clk 0:01:20.9]}
35... c3 {[%clk 0:00:08.2]} 36. Rc1 {[%clk 0:01:20.5]} 36... Bb5+ {[%clk
0:00:04.8]} 37. Ke1 {[%clk 0:01:21.1]} 37... Bc4 {[%clk 0:00:06.2]} 38. a3
{[%clk 0:01:17.3]} 38... b5 {[%clk 0:00:07.1]} 39. Kd1 {[%clk 0:01:12.8]} 39...
a5 {[%clk 0:00:07.2]} 40. Kc2 {[%clk 0:01:13.2]} 40... b4 {[%clk 0:00:08]} 41.
axb4 {[%clk 0:01:14.8]} 41... axb4 {[%clk 0:00:09.7]} 42. Rb1 {[%clk 0:01:10.3]}
42... b3+ {[%clk 0:00:07.2]} 43. Kc1 {[%clk 0:01:05.4]} 43... d3 {[%clk
0:00:06.8]} 44. f4 {[%clk 0:00:51.2]} 44... d2+ {[%clk 0:00:07.5]} 45. Kd1
{[%clk 0:00:52.8]} 45... c2+ {[%clk 0:00:09]} 46. Kxd2 {[%clk 0:00:54.4]} 46...
cxb1=Q {[%clk 0:00:10.3]} 47. Kc3 {[%clk 0:00:54.4]} 47... Qc1+ {[%clk
0:00:09.8]} 48. Kb4 {[%clk 0:00:56.3]} 48... b2 {[%clk 0:00:10.8]} 49. f5 {[%clk
0:00:57.7]} 49... b1=Q+ {[%clk 0:00:12.2]} 50. Kc5 {[%clk 0:00:58.7]} 50... Qe3+
{[%clk 0:00:09.5]} 51. Kd6 {[%clk 0:00:59.8]} 51... Qb4+ {[%clk 0:00:08.2]} 52.
Kc6 {[%clk 0:01:00.4]} 52... Qbb6# {[%clk 0:00:08.3]} 0-1

[Event "*** Titled Tuesday 3|2 Blitz"]
[Site "Chess.com"]
[Date "2015.12.01"]
[Round "7"]
[White "HansCoolNiemann"]
[Black "BellJackson95"]
[Result "0-1"]
[WhiteElo "2198"]
[BlackElo "2201"]
[TimeControl "180+2"]
[EndTime "18:30:10 PST"]
[Termination "BellJackson95 won by resignation"]

1. d4 {[%clk 0:03:01.9]} 1... Nf6 {[%clk 0:03:00.4]} 2. c4 {[%clk 0:03:02.3]}
2... c5 {[%clk 0:03:01.3]} 3. d5 {[%clk 0:03:01.4]} 3... e6 {[%clk 0:03:02.2]}
4. Nc3 {[%clk 0:03:00.6]} 4... exd5 {[%clk 0:03:04.1]} 5. cxd5 {[%clk
0:02:59.8]} 5... d6 {[%clk 0:03:04.9]} 6. Nf3 {[%clk 0:02:59.9]} 6... g6 {[%clk
0:03:05.4]} 7. Bf4 {[%clk 0:03:01]} 7... a6 {[%clk 0:03:05.7]} 8. a4 {[%clk
0:03:00.4]} 8... Bg7 {[%clk 0:03:06]} 9. e4 {[%clk 0:03:01.1]} 9... O-O {[%clk
0:03:06.4]} 10. Nd2 {[%clk 0:02:59]} 10... Nh5 {[%clk 0:02:55.9]} 11. Be3 {[%clk
0:02:56.7]} 11... Re8 {[%clk 0:02:48.5]} 12. Be2 {[%clk 0:02:54.7]} 12... Nf6
{[%clk 0:02:45]} 13. O-O {[%clk 0:02:54.9]} 13... Nbd7 {[%clk 0:02:39.1]} 14. f4
{[%clk 0:02:51.8]} 14... Qe7 {[%clk 0:02:27.2]} 15. Qc2 {[%clk 0:02:48.1]} 15...
Nxe4 {[%clk 0:02:10.3]} 16. Ncxe4 {[%clk 0:02:17.4]} 16... f5 {[%clk 0:02:09.1]}
17. Bf3 {[%clk 0:02:07.7]} 17... fxe4 {[%clk 0:02:05.5]} 18. Nxe4 {[%clk
0:02:09.6]} 18... Nf6 {[%clk 0:02:00]} 19. Nxf6+ {[%clk 0:02:07.9]} 19... Bxf6
{[%clk 0:02:00.3]} 20. Rae1 {[%clk 0:02:06.5]} 20... Bf5 {[%clk 0:02:00.2]} 21.
Qd2 {[%clk 0:02:04.1]} 21... Qg7 {[%clk 0:01:59.4]} 22. g4 {[%clk 0:01:56.8]}
22... Bd7 {[%clk 0:01:59.2]} 23. Bf2 {[%clk 0:01:41.4]} 23... Bxb2 {[%clk
0:01:56.6]} 24. Rb1 {[%clk 0:01:38.8]} 24... Bc3 {[%clk 0:01:51.5]} 25. Qc2
{[%clk 0:01:38.8]} 25... b5 {[%clk 0:01:48.5]} 26. axb5 {[%clk 0:01:33.3]} 26...
axb5 {[%clk 0:01:50.4]} 27. Kh1 {[%clk 0:01:08]} 27... b4 {[%clk 0:01:48.1]} 28.
f5 {[%clk 0:01:08.4]} 28... Bb5 {[%clk 0:01:37.8]} 29. Rg1 {[%clk 0:01:06.8]}
29... Bc4 {[%clk 0:01:34.5]} 30. Qc1 {[%clk 0:00:49.5]} 30... Bd3 {[%clk
0:01:15.1]} 31. Rb3 {[%clk 0:00:34]} 31... c4 {[%clk 0:01:14.5]} 32. Rxc3 {[%clk
0:00:27.2]} 32... Qxc3 {[%clk 0:01:16.4]} 33. Qg5 {[%clk 0:00:22.4]} 33... Bxf5
{[%clk 0:01:07.2]} 34. Qf4 {[%clk 0:00:21.2]} 34... Bd3 {[%clk 0:00:57.4]} 35.
Bd4 {[%clk 0:00:20.8]} 35... Rf8 {[%clk 0:00:48.8]} 36. Qe3 {[%clk 0:00:16]}
36... Rae8 {[%clk 0:00:41.9]} 37. Qf2 {[%clk 0:00:07.2]} 37... Rxf3 {[%clk
0:00:29.1]} 38. Qxf3 {[%clk 0:00:03.6]} 38... Qxd4 {[%clk 0:00:29.9]} 39. Qf2
{[%clk 0:00:02.7]} 39... Qxf2 {[%clk 0:00:27.8]} 0-1

[Event "*** Titled Tuesday 3|2 Blitz"]
[Site "Chess.com"]
[Date "2015.12.01"]
[Round "7"]
[White "Hikaru"]
[Black "Kacparov"]
[Result "1-0"]
[WhiteElo "2910"]
[BlackElo "2542"]
[TimeControl "180+2"]
[EndTime "18:30:24 PST"]
[Termination "Hikaru won by resignation"]

1. b3 {[%clk 0:03:01.9]} 1... e5 {[%clk 0:02:59.9]} 2. Bb2 {[%clk 0:03:03.7]}
2... Nc6 {[%clk 0:03:01.2]} 3. e3 {[%clk 0:03:05.4]} 3... d5 {[%clk 0:03:02.5]}
4. Bb5 {[%clk 0:03:06.8]} 4... Bd6 {[%clk 0:03:03.5]} 5. f4 {[%clk 0:03:06.7]}
5... f6 {[%clk 0:03:04.8]} 6. fxe5 {[%clk 0:03:03.5]} 6... fxe5 {[%clk
0:03:06.7]} 7. Nf3 {[%clk 0:02:53.5]} 7... Bg4 {[%clk 0:03:06.6]} 8. h3 {[%clk
0:02:53.8]} 8... Bxf3 {[%clk 0:03:05.7]} 9. Qxf3 {[%clk 0:02:55.7]} 9... Nf6
{[%clk 0:03:06.7]} 10. O-O {[%clk 0:02:56.1]} 10... O-O {[%clk 0:03:06.6]} 11.
Nc3 {[%clk 0:02:52.3]} 11... a6 {[%clk 0:03:07.3]} 12. Bxc6 {[%clk 0:02:52.9]}
12... bxc6 {[%clk 0:03:09.2]} 13. Qe2 {[%clk 0:02:53.1]} 13... e4 {[%clk
0:03:07.5]} 14. Na4 {[%clk 0:02:53.2]} 14... Qe7 {[%clk 0:02:57.5]} 15. Rf5
{[%clk 0:02:52.9]} 15... Nd7 {[%clk 0:02:55]} 16. Raf1 {[%clk 0:02:53.1]} 16...
Rxf5 {[%clk 0:02:44.8]} 17. Rxf5 {[%clk 0:02:55]} 17... Ne5 {[%clk 0:02:25.6]}
18. c4 {[%clk 0:02:29.9]} 18... Qe6 {[%clk 0:02:15.8]} 19. Rf1 {[%clk
0:02:20.7]} 19... dxc4 {[%clk 0:01:54.8]} 20. Qh5 {[%clk 0:01:48.7]} 20... cxb3
{[%clk 0:01:48]} 21. axb3 {[%clk 0:01:50.6]} 21... Qg6 {[%clk 0:01:32.8]} 22.
Qxg6 {[%clk 0:01:48.9]} 22... Nxg6 {[%clk 0:01:32.3]} 23. Rc1 {[%clk 0:01:46.8]}
23... Rb8 {[%clk 0:01:21.4]} 24. Rxc6 {[%clk 0:01:45.9]} 24... Rxb3 {[%clk
0:01:22.3]} 25. Rxa6 {[%clk 0:01:47.6]} 25... Kf7 {[%clk 0:01:09.9]} 26. Kf1
{[%clk 0:01:45.9]} 26... Ne7 {[%clk 0:01:08.2]} 27. Ke2 {[%clk 0:01:39.9]} 27...
Rb5 {[%clk 0:00:58.9]} 28. g4 {[%clk 0:01:34]} 28... h5 {[%clk 0:00:59]} 29.
gxh5 {[%clk 0:01:18.2]} 29... Rxh5 {[%clk 0:00:57.7]} 30. Nc3 {[%clk 0:01:19.3]}
30... Be5 {[%clk 0:00:50.7]} 31. Ra4 {[%clk 0:01:15.2]} 31... Nf5 {[%clk
0:00:42.8]} 32. Ra5 {[%clk 0:01:13.4]} 32... Bxc3 {[%clk 0:00:34.9]} 33. Bxc3
{[%clk 0:01:13.5]} 33... g6 {[%clk 0:00:33.2]} 34. Ra7 {[%clk 0:01:11.5]} 34...
Rxh3 {[%clk 0:00:33.1]} 35. Rxc7+ {[%clk 0:01:13.2]} 35... Ke8 {[%clk
0:00:28.8]} 36. Be5 {[%clk 0:01:11.9]} 36... g5 {[%clk 0:00:21.4]} 37. Rc5
{[%clk 0:01:13.1]} 37... g4 {[%clk 0:00:21.7]} 38. Bf4 {[%clk 0:01:13.2]} 38...
Nh4 {[%clk 0:00:18.7]} 39. Re5+ {[%clk 0:01:12.9]} 39... Kf7 {[%clk 0:00:20]}
40. Rxe4 {[%clk 0:01:14.6]} 40... Nf5 {[%clk 0:00:19.7]} 41. Re5 {[%clk
0:01:04.9]} 41... Kf6 {[%clk 0:00:20.5]} 42. Rd5 {[%clk 0:01:06.4]} 42... g3
{[%clk 0:00:14.6]} 43. e4 {[%clk 0:01:07.5]} 43... Ng7 {[%clk 0:00:12.5]} 44.
Be5+ {[%clk 0:01:01.7]} 44... Kf7 {[%clk 0:00:13.5]} 45. Bxg7 {[%clk 0:01:03]}
45... Kxg7 {[%clk 0:00:09.9]} 46. Kf3 {[%clk 0:01:03.9]} 46... Kf6 {[%clk
0:00:10.8]} 47. d3 {[%clk 0:00:59.5]} 47... Ke6 {[%clk 0:00:10.2]} 48. Kg2
{[%clk 0:01:00.5]} 48... Rh8 {[%clk 0:00:09.7]} 49. Kxg3 {[%clk 0:01:01.9]}
49... Rf8 {[%clk 0:00:11.3]} 50. d4 {[%clk 0:01:00.9]} 50... Rf1 {[%clk
0:00:12.3]} 51. Ra5 {[%clk 0:01:00.1]} 51... Rd1 {[%clk 0:00:11]} 52. Ra6+
{[%clk 0:01:00.8]} 52... Ke7 {[%clk 0:00:12]} 53. d5 {[%clk 0:01:02.7]} 53...
Rf1 {[%clk 0:00:12.9]} 54. Kg4 {[%clk 0:01:03.7]} 54... Rf2 {[%clk 0:00:13.9]}
55. e5 {[%clk 0:01:03.7]} 55... Rf1 {[%clk 0:00:15.1]} 56. Ra7+ {[%clk
0:01:04.4]} 56... Ke8 {[%clk 0:00:16.5]} 57. d6 {[%clk 0:01:05.5]} 57... Kf8
{[%clk 0:00:15.1]} 58. e6 {[%clk 0:01:06.4]} 58... Rg1+ {[%clk 0:00:14.5]} 59.
Kf3 {[%clk 0:01:07]} 59... Rf1+ {[%clk 0:00:16]} 60. Kg2 {[%clk 0:01:07.6]} 1-0

[Event "*** Titled Tuesday 3|2 Blitz"]
[Site "Chess.com"]
[Date "2015.12.01"]
[Round "7"]
[White "adypady02"]
[Black "dretch"]
[Result "1-0"]
[WhiteElo "2506"]
[BlackElo "2445"]
[TimeControl "180+2"]
[EndTime "18:31:12 PST"]
[Termination "adypady02 won by resignation"]

1. Nf3 {[%clk 0:03:01.5]} 1... d5 {[%clk 0:02:56.2]} 2. g3 {[%clk 0:03:01.8]}
2... Nc6 {[%clk 0:02:56.8]} 3. Bg2 {[%clk 0:03:03.4]} 3... Bg4 {[%clk 0:02:58]}
4. d4 {[%clk 0:03:04.3]} 4... Qd7 {[%clk 0:02:58.9]} 5. h3 {[%clk 0:03:05.3]}
5... Bf5 {[%clk 0:02:59.7]} 6. Nbd2 {[%clk 0:02:58.7]} 6... Nb4 {[%clk
0:02:43.3]} 7. e4 {[%clk 0:02:58.9]} 7... dxe4 {[%clk 0:02:44.1]} 8. Nh4 {[%clk
0:02:57.6]} 8... e3 {[%clk 0:02:40.5]} 9. Nxf5 {[%clk 0:02:57.2]} 9... Qxf5
{[%clk 0:02:35.8]} 10. Ne4 {[%clk 0:02:47.4]} 10... exf2+ {[%clk 0:02:21]} 11.
Kf1 {[%clk 0:02:48.4]} 11... O-O-O {[%clk 0:02:19.1]} 12. c3 {[%clk 0:02:48.7]}
12... Qb5+ {[%clk 0:02:07.8]} 13. Kxf2 {[%clk 0:02:36]} 13... Nd3+ {[%clk
0:02:08.6]} 14. Kg1 {[%clk 0:02:22.9]} 14... Nxc1 {[%clk 0:02:10.5]} 15. Qxc1
{[%clk 0:02:24.4]} 15... e5 {[%clk 0:02:12.1]} 16. Kh2 {[%clk 0:02:18.4]} 16...
Nh6 {[%clk 0:01:55.7]} 17. dxe5 {[%clk 0:02:14.3]} 17... Qxe5 {[%clk 0:01:52.3]}
18. Re1 {[%clk 0:01:50.9]} 18... Be7 {[%clk 0:01:49.5]} 19. Qc2 {[%clk
0:01:46.1]} 19... Rhe8 {[%clk 0:01:41.7]} 20. Qf2 {[%clk 0:01:44.5]} 20... Kb8
{[%clk 0:01:41.7]} 21. Nd2 {[%clk 0:01:37.4]} 21... Qf5 {[%clk 0:01:30]} 22. Nf3
{[%clk 0:01:24.2]} 22... Bd6 {[%clk 0:01:29]} 23. Rad1 {[%clk 0:01:18.1]} 23...
Qf6 {[%clk 0:01:21.9]} 24. Kg1 {[%clk 0:01:15.6]} 24... Nf5 {[%clk 0:01:20.6]}
25. Nd4 {[%clk 0:00:43.9]} 25... Bc5 {[%clk 0:01:10.5]} 26. Rxe8 {[%clk
0:00:36.6]} 26... Rxe8 {[%clk 0:01:09.6]} 27. Kh2 {[%clk 0:00:33.8]} 27... Bxd4
{[%clk 0:00:53.1]} 28. cxd4 {[%clk 0:00:30.5]} 28... Qe6 {[%clk 0:00:54.7]} 29.
Rf1 {[%clk 0:00:26.6]} 29... Nd6 {[%clk 0:00:55.8]} 30. Qf4 {[%clk 0:00:25.2]}
30... Qe3 {[%clk 0:00:53.7]} 31. Qg4 {[%clk 0:00:23.1]} 31... g6 {[%clk
0:00:49.2]} 32. Rf3 {[%clk 0:00:16.4]} 32... Qe7 {[%clk 0:00:47.1]} 33. Rb3
{[%clk 0:00:16.3]} 33... f5 {[%clk 0:00:28.2]} 34. Qf3 {[%clk 0:00:12.8]} 34...
Ne4 {[%clk 0:00:22.3]} 35. Re3 {[%clk 0:00:12]} 35... Qd6 {[%clk 0:00:21.7]} 36.
Qd1 {[%clk 0:00:11.3]} 36... Nf6 {[%clk 0:00:20.6]} 37. Rxe8+ {[%clk 0:00:10.6]}
37... Nxe8 {[%clk 0:00:22.5]} 38. Qb3 {[%clk 0:00:12]} 38... c6 {[%clk
0:00:12.4]} 39. Qg8 {[%clk 0:00:07.7]} 39... Qe7 {[%clk 0:00:07.9]} 40. d5
{[%clk 0:00:07.9]} 40... Kc7 {[%clk 0:00:08.7]} 41. dxc6 {[%clk 0:00:08.8]}
41... b6 {[%clk 0:00:06.5]} 42. Qc4 {[%clk 0:00:07.6]} 42... Nd6 {[%clk
0:00:03.4]} 43. Qa6 {[%clk 0:00:04.6]} 43... Kb8 {[%clk 0:00:04.7]} 44. Qd3
{[%clk 0:00:06]} 44... Kc7 {[%clk 0:00:05.7]} 45. Qd5 {[%clk 0:00:07.2]} 45...
Kb8 {[%clk 0:00:06.5]} 46. Qd4 {[%clk 0:00:08.1]} 46... Kc7 {[%clk 0:00:07.5]}
47. Qh8 {[%clk 0:00:09.4]} 47... Ne8 {[%clk 0:00:08.4]} 48. Qd4 {[%clk
0:00:10.4]} 48... g5 {[%clk 0:00:09.7]} 49. Qa4 {[%clk 0:00:11.4]} 49... Kb8
{[%clk 0:00:10.4]} 50. Qb5 {[%clk 0:00:12.8]} 50... f4 {[%clk 0:00:10.4]} 51.
gxf4 {[%clk 0:00:06.1]} 51... gxf4 {[%clk 0:00:12.3]} 52. Qd5 {[%clk 0:00:07.3]}
52... Qd6 {[%clk 0:00:11.3]} 53. Qf3 {[%clk 0:00:04]} 53... Nf6 {[%clk
0:00:10.9]} 54. Kg1 {[%clk 0:00:05]} 54... Kc7 {[%clk 0:00:12.1]} 55. Qc3 {[%clk
0:00:05.8]} 55... a5 {[%clk 0:00:11.1]} 56. Qc4 {[%clk 0:00:06.2]} 56... Qd1+
{[%clk 0:00:09.9]} 57. Kh2 {[%clk 0:00:06.1]} 57... Qh5 {[%clk 0:00:10.9]} 58.
Qxf4+ {[%clk 0:00:06.7]} 58... Kc8 {[%clk 0:00:12.3]} 59. Qxf6 {[%clk
0:00:07.9]} 1-0

[Event "*** Titled Tuesday 3|2 Blitz"]
[Site "Chess.com"]
[Date "2015.12.01"]
[Round "7"]
[White "MMSANCHEZ"]
[Black "flubs"]
[Result "1-0"]
[WhiteElo "2326"]
[BlackElo "2173"]
[TimeControl "180+2"]
[EndTime "18:31:13 PST"]
[Termination "MMSANCHEZ won by checkmate"]

1. d4 {[%clk 0:03:01.9]} 1... d5 {[%clk 0:03:00.3]} 2. c4 {[%clk 0:03:01.2]}
2... c6 {[%clk 0:03:01.5]} 3. Nf3 {[%clk 0:03:01.8]} 3... Nf6 {[%clk 0:03:02.6]}
4. e3 {[%clk 0:03:02.3]} 4... e6 {[%clk 0:03:03.8]} 5. b3 {[%clk 0:03:02.3]}
5... Nbd7 {[%clk 0:03:01.8]} 6. Bb2 {[%clk 0:03:02.9]} 6... Bd6 {[%clk
0:03:02.5]} 7. Bd3 {[%clk 0:03:04.3]} 7... O-O {[%clk 0:03:03.4]} 8. Ne5 {[%clk
0:03:01.1]} 8... Nxe5 {[%clk 0:02:57.7]} 9. dxe5 {[%clk 0:03:01.9]} 9... Bb4+
{[%clk 0:02:59]} 10. Nd2 {[%clk 0:02:53.8]} 10... Nd7 {[%clk 0:02:59.7]} 11. O-O
{[%clk 0:02:52.9]} 11... Bxd2 {[%clk 0:02:38.4]} 12. Qxd2 {[%clk 0:02:53.4]}
12... Qc7 {[%clk 0:02:39.8]} 13. f4 {[%clk 0:02:53.3]} 13... Rd8 {[%clk
0:02:38]} 14. Qe2 {[%clk 0:02:48.8]} 14... Nf8 {[%clk 0:02:34.1]} 15. h4 {[%clk
0:02:46.9]} 15... c5 {[%clk 0:02:29.9]} 16. h5 {[%clk 0:02:46.4]} 16... b6
{[%clk 0:02:29.1]} 17. Rad1 {[%clk 0:02:40.3]} 17... Bb7 {[%clk 0:02:28.2]} 18.
Qg4 {[%clk 0:02:40.9]} 18... dxc4 {[%clk 0:02:26]} 19. Bxc4 {[%clk 0:02:40.1]}
19... Be4 {[%clk 0:02:22.2]} 20. h6 {[%clk 0:02:37]} 20... g6 {[%clk 0:02:21.4]}
21. Qg5 {[%clk 0:02:36.6]} 21... f5 {[%clk 0:01:59.5]} 22. exf6 {[%clk
0:02:28.3]} 22... Kf7 {[%clk 0:01:58.5]} 23. f5 {[%clk 0:01:52.5]} 23... Bxf5
{[%clk 0:01:30]} 24. Rxd8 {[%clk 0:01:50.2]} 24... Rxd8 {[%clk 0:01:31.1]} 25.
Rxf5 {[%clk 0:01:50.4]} 25... b5 {[%clk 0:01:12.9]} 26. Rxc5 {[%clk 0:01:04.9]}
26... Rd1+ {[%clk 0:01:13.3]} 27. Bf1 {[%clk 0:01:05.4]} 27... Qd6 {[%clk
0:00:55.5]} 28. Rc2 {[%clk 0:00:51.7]} 28... Nd7 {[%clk 0:00:41.4]} 29. Qxb5
{[%clk 0:00:52.3]} 29... a6 {[%clk 0:00:36]} 30. Qe2 {[%clk 0:00:50.8]} 30... e5
{[%clk 0:00:28.6]} 31. Qc4+ {[%clk 0:00:32.4]} 31... Kxf6 {[%clk 0:00:29.6]} 32.
Rf2+ {[%clk 0:00:31.1]} 32... Kg5 {[%clk 0:00:30.9]} 33. Qe2 {[%clk 0:00:25.7]}
33... Kxh6 {[%clk 0:00:30.7]} 34. Qf3 {[%clk 0:00:21.2]} 34... Nc5 {[%clk
0:00:23.6]} 35. Qf8+ {[%clk 0:00:18]} 35... Qxf8 {[%clk 0:00:24.6]} 36. Rxf8
{[%clk 0:00:19.1]} 36... Nd3 {[%clk 0:00:21.5]} 37. Bc3 {[%clk 0:00:20.1]} 37...
e4 {[%clk 0:00:22.7]} 38. Bd4 {[%clk 0:00:21]} 38... g5 {[%clk 0:00:18]} 39. Kh2
{[%clk 0:00:21.4]} 39... g4 {[%clk 0:00:16.1]} 40. Be2 {[%clk 0:00:21.4]} 40...
Rd2 {[%clk 0:00:15.9]} 41. Bxg4 {[%clk 0:00:21.8]} 41... Ne1 {[%clk 0:00:15.7]}
42. Bh3 {[%clk 0:00:10.7]} 42... Nf3+ {[%clk 0:00:13.9]} 43. Kg3 {[%clk
0:00:12]} 43... Nxd4 {[%clk 0:00:13.2]} 44. exd4 {[%clk 0:00:13.4]} 44... Rxd4
{[%clk 0:00:14.7]} 45. Re8 {[%clk 0:00:14.6]} 45... Kg6 {[%clk 0:00:14.3]} 46.
Kf4 {[%clk 0:00:15.6]} 46... Rd2 {[%clk 0:00:11.1]} 47. Rxe4 {[%clk 0:00:15.6]}
47... Rxa2 {[%clk 0:00:11.9]} 48. Re6+ {[%clk 0:00:16.9]} 48... Kg7 {[%clk
0:00:12.5]} 49. Rb6 {[%clk 0:00:13.8]} 49... Rb2 {[%clk 0:00:12.3]} 50. Ke5
{[%clk 0:00:14.2]} 50... a5 {[%clk 0:00:13.6]} 51. Kd4 {[%clk 0:00:12.1]} 51...
a4 {[%clk 0:00:13.8]} 52. Kc3 {[%clk 0:00:13.3]} 52... Rb1 {[%clk 0:00:13.2]}
53. Kc2 {[%clk 0:00:12.8]} 53... Rxb3 {[%clk 0:00:14.2]} 54. Rxb3 {[%clk
0:00:12.9]} 54... axb3+ {[%clk 0:00:16.1]} 55. Kxb3 {[%clk 0:00:14.2]} 55... Kf6
{[%clk 0:00:17.8]} 56. Kc3 {[%clk 0:00:16.1]} 56... Kg5 {[%clk 0:00:19.2]} 57.
Kd3 {[%clk 0:00:17.8]} 57... Kf4 {[%clk 0:00:20.7]} 58. Ke2 {[%clk 0:00:19.7]}
58... Kg3 {[%clk 0:00:22.2]} 59. Ke3 {[%clk 0:00:21.1]} 59... Kh4 {[%clk
0:00:23.2]} 60. Kf4 {[%clk 0:00:22.4]} 60... Kh5 {[%clk 0:00:24.6]} 61. Bf5
{[%clk 0:00:22.3]} 61... Kh6 {[%clk 0:00:25.8]} 62. Kg4 {[%clk 0:00:23.4]} 62...
Kg7 {[%clk 0:00:27.2]} 63. Kh5 {[%clk 0:00:24.7]} 63... Kg8 {[%clk 0:00:26.7]}
64. g4 {[%clk 0:00:25.7]} 64... Kh8 {[%clk 0:00:28.1]} 65. Kh6 {[%clk
0:00:25.5]} 65... Kg8 {[%clk 0:00:29.7]} 66. Bxh7+ {[%clk 0:00:26.5]} 66... Kh8
{[%clk 0:00:31.6]} 67. Bb1 {[%clk 0:00:27.4]} 67... Kg8 {[%clk 0:00:33.5]} 68.
g5 {[%clk 0:00:28.6]} 68... Kh8 {[%clk 0:00:35]} 69. g6 {[%clk 0:00:29.6]} 69...
Kg8 {[%clk 0:00:36.5]} 70. Ba2+ {[%clk 0:00:30.6]} 70... Kh8 {[%clk 0:00:37.8]}
71. g7# {[%clk 0:00:32.1]} 1-0